bitfinex/quotes_SOLUSD_20220128
["timestamp","ask_amount","ask_price","bid_price","bid_amount"]
[1643391851351,3.02476218,91.551,91.466,23.2327]
[1643391851548,3.02476218,91.551,91.476,6.0]
[1643391851754,0.25,91.55,91.477,23.0981]
[1643391851950,0.25,91.55,91.477,29.0981]
[1643391852151,0.25,91.55,91.478,6.0]
[1643391852352,47.80426107,91.552,91.477,22.8481]
[1643391852655,2.95669142,91.531,91.468,23.1233]
[1643391852885,1.51380113,91.527,91.468,23.1233]
[1643391853387,38.97075309,91.523,91.468,23.1233]
[1643391853781,1.51380113,91.521,91.469,0.25]
[1643391853984,0.25,91.522,91.469,22.5011]
[1643391854184,0.25,91.522,91.45,13.58]
[1643391854486,0.25,91.522,91.438,22.5011]
[1643391854487,1.76380113,91.522,91.438,22.5011]
[1643391854683,1.76380113,91.522,91.439,0.25]
[1643391854684,1.51380113,91.52,91.439,0.25]
[1643391855083,48.01934986,91.521,91.439,0.25]
[1643391855685,1.51380113,91.519,91.439,0.25]
[1643391855886,1.51380113,91.518,91.439,0.25]
[1643391857686,1.51380113,91.518,91.448,6.0]
[1643391857886,1.51380113,91.517,91.42,13.58]
[1643391858190,2.95669142,91.495,91.414,1.5187638]
[1643391858385,1.51380113,91.488,91.39,13.58]
[1643391858590,1.51380113,91.482,91.4,6.0]
[1643391858793,1.51380113,91.482,91.397,6.0]
[1643391858998,1.51380113,91.482,91.382,1.5187638]
[1643391858999,6.0,91.472,91.382,1.5187638]
[1643391859190,54.732,91.47,91.374,1.5187638]
[1643391859389,1.51380113,91.465,91.363,1.5187638]
[1643391859588,6.0,91.46,91.362,1.5187638]
[1643391859888,6.0,91.455,91.361,1.5187638]
[1643391860087,6.0,91.449,91.358,1.5187638]
[1643391860288,16.421,91.44,91.351,1.5187638]
[1643391860493,16.421,91.44,91.349,51.4248638]
[1643391860691,45.79171754,91.429,91.35,0.25]
[1643391861489,45.79171754,91.429,91.349,49.9061]
[1643391861692,48.74840896,91.429,91.345,1.5187638]
[1643391861891,6.0,91.419,91.331,1.5187638]
[1643391862091,6.0,91.419,91.321,1.5187638]
[1643391862293,6.0,91.419,91.296,3.01864838]
[1643391862294,1.51380113,91.417,91.302,1.5187638]
[1643391862492,1.51380113,91.417,91.301,1.5187638]
[1643391862694,16.428,91.4,91.305,1.5187638]
[1643391862893,0.25,91.416,91.305,1.5187638]
[1643391863095,0.25,91.416,91.315,6.0]
[1643391863295,0.25,91.416,91.316,0.25]
[1643391863498,0.25,91.416,91.319,6.0]
[1643391863697,16.427,91.41,91.32,22.6004]
[1643391863894,16.427,91.41,91.326,6.0]
[1643391864135,16.427,91.41,91.32,22.8504]
[1643391864294,0.25,91.416,91.33,6.0]
[1643391864496,0.25,91.416,91.331,6.0]
[1643391864694,0.25,91.416,91.331,0.25]
[1643391865394,3.20669142,91.416,91.3,15.0987638]
[1643391865593,6.0,91.406,91.31,6.0]
[1643391865793,6.0,91.406,91.311,0.25]
[1643391865994,40.99627497,91.399,91.307,6.0]
[1643391866200,40.99627497,91.399,91.309,6.0]
[1643391866397,40.99627497,91.399,91.31,0.25]
[1643391866597,40.99627497,91.399,91.317,6.0]
[1643391866802,40.99627497,91.399,91.318,0.25]
[1643391866999,40.99627497,91.399,91.321,6.0]
[1643391867407,40.99627497,91.399,91.322,0.25]
[1643391868004,40.99627497,91.399,91.322,109.35]
[1643391868408,40.99627497,91.399,91.322,0.25]
[1643391868606,40.99627497,91.399,91.323,0.25]
[1643391868906,2.95669142,91.398,91.311,0.25]
[1643391869110,6.0,91.388,91.311,0.25]
[1643391869506,2.95669142,91.387,91.311,0.25]
[1643391869906,6.0,91.377,91.311,0.25]
[1643391870105,6.0,91.377,91.291,6.0]
[1643391870306,6.0,91.377,91.292,0.25]
[1643391870706,6.0,91.377,91.289,6.0]
[1643391870907,6.0,91.377,91.288,6.0]
[1643391871108,16.435,91.37,91.286,6.0]
[1643391871308,46.22693054,91.369,91.286,6.0]
[1643391871514,46.22693054,91.369,91.287,23.6195]
[1643391872033,46.22693054,91.369,91.297,6.0]
[1643391872433,46.22693054,91.369,91.298,0.25]
[1643391873932,0.25,91.368,91.298,0.25]
[1643391874834,0.25,91.368,91.298,109.35]
[1643391875036,0.25,91.368,91.308,6.0]
[1643391875434,0.25,91.368,91.299,23.8547]
[1643391875435,0.25,91.368,91.309,0.25]
[1643391876037,0.25,91.368,91.309,6.25]
[1643391876235,0.25,91.368,91.309,0.25]
[1643391876434,46.22693054,91.369,91.319,6.0]
[1643391876639,46.22693054,91.369,91.309,6.0]
[1643391876834,46.22693054,91.369,91.31,0.25]
[1643391877237,16.43,91.39,91.31,0.25]
[1643391877238,46.5258,91.409,91.31,0.25]
[1643391877437,16.427,91.41,91.31,170.127]
[1643391877637,16.427,91.41,91.32,6.0]
[1643391877936,0.25,91.409,91.321,22.8409]
[1643391878137,39.88013343,91.409,91.321,22.8409]
[1643391878336,42.83682485,91.409,91.321,22.8409]
[1643391878937,2.95669142,91.408,91.321,22.8409]
[1643391879139,2.45669142,91.408,91.321,22.8409]
[1643391879539,2.95669142,91.407,91.321,22.8409]
[1643391879742,2.95669142,91.408,91.321,22.8409]
[1643391879940,2.95669142,91.408,91.321,22.5909]
[1643391880140,39.88013343,91.409,91.331,6.0]
[1643391880341,39.88013343,91.409,91.332,23.4663]
[1643391881245,0.25,91.409,91.332,23.4663]
[1643391881449,0.25,91.409,91.342,6.0]
[1643391881647,6.0,91.459,91.343,23.0288]
[1643391881843,6.0,91.459,91.343,23.2788]
[1643391882044,49.66683562,91.458,91.353,6.0]
[1643391882244,52.62352704,91.458,91.354,46.2735]
[1643391882449,6.0,91.457,91.354,46.2735]
[1643391882746,2.95669142,91.457,91.364,6.0]
[1643391883046,16.419,91.45,91.365,22.9002]
[1643391883245,16.419,91.45,91.365,23.1502]
[1643391883447,2.95669142,91.456,91.365,23.1502]
[1643391883647,49.66683562,91.458,91.375,6.0]
[1643391883847,43.66683562,91.458,91.376,24.9944]
[1643391884049,43.66683562,91.458,91.386,6.0]
[1643391884356,2.95669142,91.47,91.387,0.25]
[1643391884649,2.95669142,91.482,91.386,6.0]
[1643391884850,2.95669142,91.482,91.387,48.1781]
[1643391885051,18.75560938,91.495,91.397,6.0]
[1643391885261,0.00319592,91.496,91.41,13.58]
[1643391885449,0.00319592,91.496,91.411,23.4182]
[1643391885652,0.00319592,91.496,91.42,6.0]
[1643391885854,0.00319592,91.496,91.43,13.58]
[1643391886153,0.00319592,91.496,91.441,109.1]
[1643391886351,0.00319592,91.496,91.442,0.25]
[1643391886552,0.00319592,91.496,91.452,109.1]
[1643391886757,0.00319592,91.496,91.453,0.25]
[1643391886955,0.00319592,91.496,91.462,6.0]
[1643391887451,0.00319592,91.496,91.463,0.25]
[1643391887852,0.00319592,91.496,91.463,6.25]
[1643391888052,0.00319592,91.496,91.473,6.0]
[1643391888253,0.00319592,91.496,91.474,0.25]
[1643391889255,0.00319592,91.496,91.464,0.25]
[1643391890555,0.00319592,91.496,91.463,6.0]
[1643391890757,0.00319592,91.496,91.464,0.25]
[1643391891958,0.00319592,91.496,91.453,109.1]
[1643391891959,0.00319592,91.496,91.454,0.25]
[1643391892558,0.00319592,91.496,91.46,6.0]
[1643391892858,0.00319592,91.496,91.461,0.25]
[1643391893660,0.00319592,91.496,91.47,13.58]
[1643391893862,0.00319592,91.496,91.471,109.35]
[1643391894060,0.00319592,91.496,91.481,6.0]
[1643391894263,0.00319592,91.496,91.482,0.25]
[1643391894662,0.00319592,91.496,91.482,24.1179]
[1643391894861,0.00319592,91.496,91.49,6.0]
[1643391895064,0.00319592,91.496,91.492,6.0]
[1643391895764,0.00319592,91.496,91.49,13.58]
[1643391896164,0.00319592,91.496,91.491,0.25]
[1643391897565,0.00319592,91.496,91.492,2.51312309]
[1643391897766,0.00319592,91.496,91.493,23.0235]
[1643391897992,1.01699705,91.632,91.493,23.0235]
[1643391898197,40.8323,91.639,91.494,2.51312309]
[1643391898393,15.66449827,91.633,91.503,6.0]
[1643391898592,44.97239404,91.609,91.51,13.58]
[1643391898792,44.97239404,91.609,91.511,23.9046]
[1643391899596,6.0,91.599,91.511,23.9046]
[1643391901194,0.25,91.598,91.511,23.9046]
[1643391902396,6.0,91.59,91.511,23.9046]
[1643391903093,0.25,91.598,91.511,23.9046]
[1643391904094,16.394,91.59,91.511,23.9046]
[1643391904496,35.55556735,91.579,91.511,23.9046]
[1643391904897,6.0,91.569,91.511,23.9046]
[1643391907208,54.651,91.6,91.511,23.9046]
[1643391907403,48.6208,91.638,91.521,6.0]
[1643391907603,48.6208,91.638,91.531,109.1]
[1643391907917,48.6208,91.638,91.533,109.1]
[1643391908103,48.6208,91.638,91.543,115.1]
[1643391908306,43.04458329,91.637,91.544,25.1803]
[1643391908506,6.0,91.627,91.554,6.0]
[1643391908706,6.0,91.627,91.544,25.1803]
[1643391908907,6.0,91.62,91.544,25.1803]
[1643391909117,113.7,91.69,91.544,25.1803]
[1643391909308,17.63799447,91.818,91.544,25.1803]
[1643391909309,13.58,91.67,91.554,6.0]
[1643391909507,2.96622881,91.697,91.569,0.32204438]
[1643391909712,24.4381,91.699,91.581,109.1]
[1643391909914,2.95669142,91.689,91.582,47.3921]
[1643391910128,37.6575933,91.688,91.592,6.0]
[1643391910312,37.6575933,91.688,91.601,109.1]
[1643391910515,37.6575933,91.688,91.611,6.0]
[1643391910916,6.0,91.678,91.612,0.25]
[1643391911116,16.371,91.72,91.612,0.25]
[1643391911516,2.95669142,91.729,91.62,6.0]
[1643391911718,54.567,91.75,91.62,6.0]
[1643391911719,2.96622881,91.75,91.62,19.58]
[1643391911918,2.96622881,91.752,91.62,19.58]
[1643391912117,16.371,91.72,91.6,13.58]
[1643391912319,3.0049443,91.719,91.582,23.7549]
[1643391912518,5.96163572,91.719,91.582,23.7549]
[1643391912718,3.20669142,91.718,91.592,6.0]
[1643391913120,16.375,91.7,91.601,109.1]
[1643391913317,6.0,91.708,91.601,109.1]
[1643391913518,6.0,91.707,91.611,6.0]
[1643391913918,8.95669142,91.707,91.612,0.25]
[1643391914118,2.95669142,91.706,91.62,6.0]
[1643391914319,2.95669142,91.706,91.621,109.35]
[1643391914518,6.0,91.707,91.631,6.0]
[1643391915020,6.0,91.714,91.632,0.25]
[1643391915717,6.0,91.729,91.64,6.0]
[1643391916217,6.0,91.729,91.641,0.25]
[1643391916646,6.0,91.729,91.65,16.364]
[1643391916817,6.0,91.729,91.651,0.25]
[1643391917023,6.0,91.729,91.66,6.0]
[1643391917423,0.25,91.728,91.661,0.25]
[1643391917626,6.0,91.722,91.661,0.25]
[1643391918025,6.0,91.718,91.661,0.25]
[1643391918423,6.0,91.718,91.64,13.58]
[1643391918424,5.0,91.718,91.641,0.25]
[1643391918626,5.0,91.718,91.65,6.0]
[1643391918829,0.25,91.728,91.65,6.0]
[1643391919026,0.25,91.728,91.651,6.0]
[1643391919527,0.25,91.728,91.606,78.2154]
[1643391919528,2.95669142,91.727,91.63,13.58]
[1643391920325,6.0,91.717,91.63,13.58]
[1643391920533,37.37560852,91.709,91.63,13.58]
[1643391920929,6.0,91.699,91.63,13.58]
[1643391921126,37.37560852,91.709,91.63,13.58]
[1643391921828,37.37560852,91.709,91.631,0.25]
[1643391922226,6.0,91.717,91.631,0.25]
[1643391922630,6.0,91.718,91.631,0.25]
[1643391923032,2.95669142,91.716,91.631,0.25]
[1643391923333,6.0,91.718,91.631,0.25]
[1643391923334,6.0,91.706,91.631,0.25]
[1643391923631,2.95669142,91.742,91.64,6.0]
[1643391923832,2.95669142,91.742,91.641,0.25]
[1643391924030,6.0,91.732,91.65,6.0]
[1643391924251,6.0,91.732,91.651,0.25]
[1643391924449,37.22958922,91.731,91.651,0.25]
[1643391924654,36.47958922,91.731,91.651,0.25]
[1643391924850,6.0,91.721,91.651,0.25]
[1643391925255,6.0,91.721,91.64,13.58]
[1643391926654,6.0,91.721,91.641,0.25]
[1643391927455,6.0,91.721,91.64,13.58]
[1643391928055,6.0,91.72,91.64,13.58]
[1643391928362,6.25,91.72,91.64,13.58]
[1643391928557,2.95669142,91.719,91.62,13.58]
[1643391928856,45.76907113,91.709,91.61,13.58]
[1643391929056,45.76907113,91.709,91.62,6.0]
[1643391929259,2.95669142,91.708,91.62,6.0]
[1643391929457,2.95669142,91.708,91.603,109.1]
[1643391929656,2.95669142,91.708,91.613,6.0]
[1643391930057,2.95669142,91.708,91.6,13.58]
[1643391930257,16.375,91.7,91.6,13.58]
[1643391930659,19.33169142,91.7,91.6,13.58]
[1643391930861,19.33169142,91.7,91.601,109.1]
[1643391931059,45.76907113,91.709,91.611,6.0]
[1643391931259,45.76907113,91.709,91.612,0.25]
[1643391931460,45.76907113,91.709,91.611,6.0]
[1643391931659,2.95669142,91.708,91.611,6.0]
[1643391931867,6.0,91.699,91.605,6.0]
[1643391932061,6.0,91.698,91.59,13.58]
[1643391932263,6.0,91.698,91.56,13.58]
[1643391932264,8.95669142,91.698,91.56,13.58]
[1643391932460,16.376,91.69,91.56,13.58]
[1643391932661,41.79155614,91.689,91.56,13.58]
[1643391932860,6.0,91.687,91.54,13.58]
[1643391933063,6.0,91.679,91.53,19.58]
[1643391933262,42.58067645,91.669,91.521,6.0]
[1643391933464,42.58067645,91.669,91.522,6.0]
[1643391933662,42.58067645,91.669,91.53,6.0]
[1643391933663,6.0,91.659,91.53,6.0]
[1643391934063,36.30531329,91.649,91.53,6.0]
[1643391934463,6.0,91.639,91.53,6.0]
[1643391934865,8.95669142,91.638,91.53,6.0]
[1643391935164,8.95669142,91.638,91.531,0.25]
[1643391935165,2.95669142,91.637,91.531,0.25]
[1643391935676,16.389,91.62,91.53,6.0]
[1643391935971,2.95669142,91.619,91.53,4.5]
[1643391936168,38.55752587,91.609,91.53,4.5]
[1643391936365,44.55752587,91.609,91.512,47.4403]
[1643391936564,16.392,91.6,91.512,47.4403]
[1643391936768,16.392,91.6,91.513,0.25]
[1643391937165,38.55752587,91.609,91.513,0.25]
[1643391937370,38.55752587,91.609,91.522,6.0]
[1643391937769,16.386,91.64,91.523,2.75189266]
[1643391938168,6.0,91.63,91.533,6.0]
[1643391938369,70.2965,91.656,91.523,0.25]
[1643391938370,2.95669142,91.639,91.523,0.25]
[1643391938565,2.95669142,91.639,91.51,13.58]
[1643391938566,6.0,91.629,91.51,13.58]
[1643391938767,43.58192602,91.628,91.5,13.58]
[1643391938966,46.53861744,91.628,91.5,13.58]
[1643391939167,6.0,91.618,91.5,13.58]
[1643391939666,2.95669142,91.617,91.5,13.58]
[1643391939870,39.91146731,91.608,91.52,13.58]
[1643391940068,39.91146731,91.608,91.53,6.0]
[1643391940269,39.91146731,91.608,91.531,0.25]
[1643391940668,39.91146731,91.608,91.531,6.25]
[1643391941068,39.91146731,91.608,91.531,6.0]
[1643391941872,39.91146731,91.608,91.522,6.0]
[1643391942271,39.91146731,91.608,91.523,0.25]
[1643391942674,0.25,91.607,91.522,6.0]
[1643391942872,0.25,91.607,91.483,98.9214]
[1643391942873,3.20669142,91.607,91.483,98.9214]
[1643391943072,6.0,91.597,91.46,29.978]
[1643391943476,8.95669142,91.596,91.46,13.58]
[1643391943872,6.0,91.59,91.461,111.60189266]
[1643391944075,6.0,91.585,91.461,111.60189266]
[1643391944373,6.0,91.585,91.472,109.1]
[1643391944572,6.0,91.579,91.482,6.0]
[1643391944773,6.0,91.579,91.483,109.1]
[1643391944974,6.0,91.579,91.49,6.0]
[1643391945173,6.0,91.579,91.493,6.0]
[1643391945374,6.0,91.579,91.494,0.25]
[1643391945574,6.0,91.579,91.495,109.1]
[1643391945777,6.0,91.579,91.496,0.25]
[1643391945976,6.0,91.579,91.505,6.0]
[1643391946475,6.0,91.579,91.506,0.25]
[1643391946875,46.12174924,91.589,91.495,6.0]
[1643391947074,16.396,91.58,91.495,6.0]
[1643391947276,16.396,91.58,91.496,0.25]
[1643391947879,16.396,91.58,91.495,6.0]
[1643391948077,16.396,91.58,91.496,0.25]
[1643391949084,13.58,91.62,91.5,22.392]
[1643391949279,1124.26922736,92.583,91.51,13.58]
[1643391949280,16.222,91.664,91.51,13.58]
[1643391949481,13.58,91.68,91.51,13.58]
[1643391949678,16.212,91.667,91.52,6.0]
[1643391949880,16.212,91.667,91.53,13.58]
[1643391950081,49.38708085,91.649,91.54,6.0]
[1643391950282,16.385,91.64,91.55,13.58]
[1643391950489,6.0,91.639,91.55,13.58]
[1643391950787,6.0,91.639,91.551,0.25]
[1643391951584,47.64173925,91.629,91.55,13.58]
[1643391951990,2.95669142,91.628,91.55,13.58]
[1643391952385,0.25,91.627,91.55,13.58]
[1643391952785,2.95669142,91.626,91.55,13.58]
[1643391952986,6.0,91.616,91.531,47.3014]
[1643391953186,43.38640039,91.615,91.532,0.25]
[1643391953386,46.34309181,91.615,91.532,0.25]
[1643391953600,2.95669142,91.614,91.532,0.25]
[1643391955090,16.391,91.61,91.531,47.3014]
[1643391955887,16.391,91.61,91.5,13.58]
[1643391956090,16.397,91.58,91.494,49.0379]
[1643391956290,36.88017404,91.579,91.494,49.0379]
[1643391956487,39.83686546,91.579,91.494,49.0379]
[1643391956691,2.95669142,91.578,91.494,49.0379]
[1643391957091,36.88017404,91.579,91.494,49.0379]
[1643391957288,16.398,91.57,91.495,0.25]
[1643391958422,16.398,91.57,91.494,49.0379]
[1643391960523,16.398,91.57,91.495,0.25]
[1643391961125,16.398,91.57,91.444,11.41515037]
[1643391961126,2.95669142,91.569,91.454,22.7276]
[1643391961326,44.74330638,91.559,91.45,19.41664838]
[1643391961529,44.74330638,91.559,91.43,68.245]
[1643391961530,42.38581725,91.539,91.452,46.0192]
[1643391962525,6.0,91.529,91.452,46.0192]
[1643391962726,16.406,91.52,91.452,46.0192]
[1643391962926,40.70787801,91.519,91.452,46.0192]
[1643391963129,6.0,91.509,91.419,78.32044838]
[1643391963329,6.0,91.509,91.44,6.0]
[1643391963526,6.0,91.508,91.43,6.0]
[1643391963827,8.95669142,91.508,91.43,6.0]
[1643391964029,2.95669142,91.507,91.43,6.0]
[1643391964233,2.95669142,91.507,91.431,0.25]
[1643391964426,37.92696151,91.496,91.431,0.25]
[1643391965025,2.95669142,91.521,91.431,0.25]
[1643391965227,2.96622881,91.59,91.44,16.402]
[1643391965427,4.48746385,91.616,91.441,109.1]
[1643391965428,2.95669142,91.578,91.441,109.1]
[1643391965629,2.95669142,91.578,91.451,6.0]
[1643391965630,6.0,91.549,91.451,6.0]
[1643391965825,6.0,91.549,91.452,47.1283]
[1643391966029,40.0926226,91.548,91.452,47.1283]
[1643391966426,6.0,91.538,91.452,47.1283]
[1643391966830,0.25,91.537,91.451,6.0]
[1643391967026,9.20669142,91.537,91.424,6.0]
[1643391967239,2.95669142,91.536,91.424,6.0]
[1643391967427,2.95669142,91.536,91.425,0.25]
[1643391967629,43.18403857,91.525,91.425,6.25]
[1643391967829,40.55168857,91.499,91.425,6.25]
[1643391970435,40.55168857,91.499,91.43,6.0]
[1643391970636,40.55168857,91.499,91.425,6.0]
[1643391971739,40.55168857,91.499,91.426,0.25]
[1643391972035,6.0,91.489,91.426,0.25]
[1643391972236,6.0,91.489,91.415,47.1945]
[1643391972439,2.95669142,91.488,91.415,47.1945]
[1643391972837,6.0,91.489,91.415,47.1945]
[1643391973037,6.0,91.489,91.425,6.0]
[1643391973237,0.25,91.488,91.425,6.0]
[1643391973639,6.0,91.489,91.426,0.25]
[1643391973836,0.25,91.498,91.426,0.25]
[1643391974037,40.55168857,91.499,91.426,0.25]
[1643391975040,16.407,91.52,91.426,0.25]
[1643391975238,16.407,91.52,91.426,24.9686]
[1643391975439,6.0,91.51,91.43,6.0]
[1643391975736,6.0,91.51,91.426,24.9686]
[1643391975937,6.0,91.509,91.426,24.7186]
[1643391976240,52.52956464,91.509,91.426,24.7186]
[1643391976438,2.95669142,91.508,91.426,24.7186]
[1643391976637,6.0,91.498,91.426,24.7186]
[1643391976841,6.0,91.498,91.427,0.25]
[1643391977038,6.0,91.498,91.436,6.0]
[1643391977438,6.0,91.499,91.436,6.0]
[1643391977638,46.52956464,91.509,91.436,6.0]
[1643391977838,6.0,91.489,91.437,0.25]
[1643391978039,35.88701584,91.488,91.437,0.25]
[1643391978238,36.13701584,91.488,91.426,24.7186]
[1643391978438,36.13701584,91.488,91.427,0.25]
[1643391979540,36.13701584,91.488,91.426,24.7186]
[1643391979939,36.13701584,91.488,91.427,0.25]
[1643391980140,36.13701584,91.488,91.426,24.7186]
[1643391980338,36.13701584,91.488,91.378,3.01864838]
[1643391980547,36.13701584,91.488,91.36,54.707]
[1643391980548,6.0,91.478,91.391,6.0]
[1643391980943,6.0,91.477,91.4,6.0]
[1643391981148,6.0,91.477,91.382,48.4483]
[1643391981541,6.0,91.477,91.392,6.0]
[1643391981741,6.0,91.477,91.393,23.0258]
[1643391981945,0.25,91.476,91.393,23.0258]
[1643391982142,0.25,91.476,91.403,6.0]
[1643391982342,0.25,91.476,91.404,23.2758]
[1643391982539,0.25,91.476,91.414,6.0]
[1643391982741,0.25,91.476,91.415,48.968]
[1643391982941,6.0,91.51,91.415,48.968]
[1643391983141,22.409,91.51,91.42,16.407]
[1643391983341,40.20038907,91.509,91.421,0.25]
[1643391983541,6.0,91.499,91.421,0.25]
[1643391984743,6.0,91.499,91.415,48.718]
[1643391984947,6.0,91.499,91.416,0.25]
[1643391985646,6.0,91.49,91.416,0.25]
[1643391985845,42.18673478,91.489,91.416,0.25]
[1643391986748,16.2634,91.536,91.425,6.0]
[1643391986946,54.688,91.55,91.426,23.4734]
[1643391987151,6.0,91.514,91.43,6.0]
[1643391987346,2.95669142,91.533,91.436,6.0]
[1643391987546,48.03941947,91.503,91.436,6.0]
[1643391987749,6.0,91.514,91.436,6.0]
[1643391987951,6.0,91.493,91.436,6.0]
[1643391988150,6.0,91.514,91.437,24.5178]
[1643391988357,6.0,91.514,91.437,30.5178]
[1643391988552,16.409,91.51,91.437,24.5178]
[1643391988754,46.47341303,91.509,91.437,24.5178]
[1643391989055,6.0,91.499,91.409,3.01864838]
[1643391989257,6.0,91.499,91.402,24.9762]
[1643391989258,6.0,91.499,91.416,0.25]
[1643391989855,46.3730453,91.489,91.402,27.99484838]
[1643391990954,16.412,91.49,91.402,27.99484838]
[1643391991154,16.0197,91.56,91.425,6.0]
[1643391991155,13.58,91.54,91.425,6.0]
[1643391991358,16.0197,91.56,91.426,3.2927734]
[1643391991359,48.6026,91.559,91.426,3.2927734]
[1643391991558,6.0,91.549,91.431,109.1]
[1643391991776,6.0,91.549,91.436,6.0]
[1643391991977,47.35215294,91.548,91.441,6.0]
[1643391992182,47.35215294,91.548,91.442,6.0]
[1643391992183,71.86785294,91.548,91.442,6.0]
[1643391992378,16.403,91.54,91.442,6.0]
[1643391992579,6.0,91.53,91.443,6.0]
[1643391992779,43.46426335,91.529,91.444,23.2636]
[1643391992980,43.46426335,91.529,91.454,6.0]
[1643391992981,43.71426335,91.529,91.454,6.0]
[1643391993579,43.46426335,91.529,91.455,6.0]
[1643391993779,43.46426335,91.529,91.456,0.25]
[1643391994382,6.0,91.519,91.455,6.0]
[1643391994581,6.0,91.519,91.445,23.8949]
[1643391994785,0.25,91.518,91.446,0.25]
[1643391994986,0.25,91.518,91.445,23.8949]
[1643391995887,0.25,91.518,91.446,0.25]
[1643391997185,56.2513808,91.51,91.446,0.25]
[1643391997388,39.8423808,91.51,91.445,23.8949]
[1643391997787,6.0,91.519,91.445,23.8949]
[1643391998087,13.58,91.57,91.455,6.0]
[1643391998287,23.5941,91.582,91.456,109.1]
[1643391998486,23.5941,91.582,91.46,13.58]
[1643391998687,23.5941,91.582,91.466,6.0]
[1643391998887,40.62281653,91.581,91.471,109.1]
[1643391999093,40.62281653,91.581,91.481,6.0]
[1643391999286,2.95669142,91.58,91.482,46.6282]
[1643391999486,6.0,91.571,91.482,46.6282]
[1643391999688,6.0,91.57,91.482,46.6282]
[1643392000086,22.399,91.57,91.482,46.6282]
[1643392000287,16.399,91.57,91.482,46.6282]
[1643392001289,2.96622881,91.598,91.483,111.62168224]
[1643392001290,16.394,91.59,91.483,111.62168224]
[1643392001489,2.95669142,91.593,91.483,111.62168224]
[1643392001689,2.96622881,91.614,91.493,6.0]
[1643392001890,2.96622881,91.614,91.5,13.58]
[1643392002190,46.00656916,91.632,91.51,6.0]
[1643392002493,3.02804515,91.631,91.52,16.389]
[1643392002692,3.02804515,91.631,91.494,18.40693188]
[1643392002693,16.389,91.62,91.484,0.25]
[1643392002889,6.0,91.621,91.484,0.25]
[1643392002890,13.58,91.61,91.495,0.25]
[1643392003089,6.0,91.608,91.484,0.25]
[1643392003290,6.0,91.6,91.483,24.2596]
[1643392003494,41.47736131,91.599,91.483,24.2596]
[1643392003788,6.0,91.597,91.483,24.2596]
[1643392003989,6.0,91.589,91.483,24.2596]
[1643392004393,42.7268507,91.579,91.493,6.0]
[1643392004591,6.0,91.569,91.493,6.0]
[1643392004792,42.7268507,91.579,91.5,6.0]
[1643392005190,42.7268507,91.579,91.501,0.25]
[1643392005391,42.7268507,91.579,91.504,6.0]
[1643392005691,42.7268507,91.579,91.494,24.647]
[1643392006090,42.7268507,91.579,91.504,6.0]
[1643392006291,16.398,91.57,91.505,0.25]
[1643392006490,42.7268507,91.579,91.505,0.25]